[Event "Titled Tuesday Blitz October 26 2021"]
[White "Gabrielian, Artur"]
[Black "Carnicelli, Valerio"]
[WhiteFideId "4131002"]
[BlackFideId "856185"]
[WhiteElo "2489"]
[BlackElo "2332"]
[Result "0-1"]
[Round "05"]
[TimeControl "180+1"]
[Date "2021.10.26"]
[WhiteClock "0:00:07"]
[BlackClock "0:00:27"]

1. e4 {[%clk 0:03:00]}  e5 {[%clk 0:02:59]} 2. Nc3 {[%clk 0:03:00]}  Nc6 {[%clk 0:03:00]} 3. g3 {[%clk 0:03:00]}  Bc5 {[%clk 0:02:59]} 4. Bg2 {[%clk 0:03:00]}  Nf6 {[%clk 0:02:59]} 5. Nge2 {[%clk 0:03:01]}  a6 {[%clk 0:03:00]} 6. O-O {[%clk 0:03:01]}  d6 {[%clk 0:03:00]} 7. d3 {[%clk 0:03:01]}  h5 {[%clk 0:02:58]} 8. h3 {[%clk 0:03:01]}  h4 {[%clk 0:02:55]} 9. g4 {[%clk 0:03:02]}  Nxg4 {[%clk 0:02:54]} 10. hxg4 {[%clk 0:03:02]}  Bxg4 {[%clk 0:02:52]} 11. Kh2 {[%clk 0:03:02]}  h3 {[%clk 0:02:48]} 12. Bh1 {[%clk 0:03:02]}  Qh4 {[%clk 0:02:39]} 13. f3 {[%clk 0:02:55]}  Be6 {[%clk 0:02:36]} 14. Qe1 {[%clk 0:02:53]}  Qxe1 {[%clk 0:02:18]} 15. Rxe1 {[%clk 0:02:53]}  Nb4 {[%clk 0:02:18]} 16. Rf1 {[%clk 0:02:41]}  Nxc2 {[%clk 0:02:18]} 17. Rb1 {[%clk 0:02:41]}  Nb4 {[%clk 0:02:17]} 18. Rd1 {[%clk 0:02:33]}  Nxa2 {[%clk 0:02:13]} 19. Nxa2 {[%clk 0:02:32]}  Bxa2 {[%clk 0:02:13]} 20. Ra1 {[%clk 0:02:32]}  Bb3 {[%clk 0:02:13]} 21. Rf1 {[%clk 0:02:31]}  Bc2 {[%clk 0:02:06]} 22. Nc3 {[%clk 0:02:27]}  Bxd3 {[%clk 0:02:02]} 23. Rd1 {[%clk 0:02:27]}  Bc4 {[%clk 0:02:00]} 24. Nd5 {[%clk 0:02:23]}  O-O-O {[%clk 0:01:51]} 25. Bg5 {[%clk 0:02:03]}  f6 {[%clk 0:01:50]} 26. Be3 {[%clk 0:02:02]}  Bxd5 {[%clk 0:01:31]} 27. Bxc5 {[%clk 0:02:02]}  Bxe4 {[%clk 0:01:11]} 28. fxe4 {[%clk 0:01:24]}  dxc5 {[%clk 0:01:11]} 29. Rd5 {[%clk 0:01:17]}  c6 {[%clk 0:01:07]} 30. Rxd8+ {[%clk 0:01:11]}  Rxd8 {[%clk 0:01:07]} 31. Rg1 {[%clk 0:01:09]}  Rd2+ {[%clk 0:00:57]} 32. Kxh3 {[%clk 0:01:09]}  Rxb2 {[%clk 0:00:58]} 33. Rc1 {[%clk 0:00:47]}  b6 {[%clk 0:00:55]} 34. Kg4 {[%clk 0:00:44]}  a5 {[%clk 0:00:54]} 35. Kf5 {[%clk 0:00:39]}  a4 {[%clk 0:00:48]} 36. Ra1 {[%clk 0:00:39]}  b5 {[%clk 0:00:48]} 37. Ke6 {[%clk 0:00:39]}  Kc7 {[%clk 0:00:47]} 38. Bf3 {[%clk 0:00:32]}  c4 {[%clk 0:00:42]} 39. Rg1 {[%clk 0:00:30]}  g5 {[%clk 0:00:38]} 40. Kxf6 {[%clk 0:00:29]}  Rf2 {[%clk 0:00:38]} 41. Kxe5 {[%clk 0:00:25]}  Rxf3 {[%clk 0:00:37]} 42. Kd4 {[%clk 0:00:24]}  Kb6 {[%clk 0:00:35]} 43. e5 {[%clk 0:00:22]}  Rd3+ {[%clk 0:00:32]} 44. Ke4 {[%clk 0:00:22]}  a3 {[%clk 0:00:30]} 45. e6 {[%clk 0:00:20]}  Rd8 {[%clk 0:00:29]} 46. Rxg5 {[%clk 0:00:16]}  a2 {[%clk 0:00:29]} 47. Rg1 {[%clk 0:00:16]}  Ra8 {[%clk 0:00:28]} 48. e7 {[%clk 0:00:13]}  a1=Q {[%clk 0:00:26]} 49. Rxa1 {[%clk 0:00:07]}  Rxa1 {[%clk 0:00:27]} 0-1


[Site "https://www.chess.com"]

[Event "Titled Tuesday Blitz October 26 2021"]
[White "Gupta, Abhijeet"]
[Black "Obregon, Andres Carlos"]
[WhiteFideId "5010608"]
[BlackFideId "111724"]
[WhiteElo "2549"]
[BlackElo "2572"]
[Result "1-0"]
[Round "05"]
[TimeControl "180+1"]
[Date "2021.10.26"]
[WhiteClock "0:00:44"]
[BlackClock "0:01:17"]

1. d4 {[%clk 0:03:00]}  Nf6 {[%clk 0:02:59]} 2. c4 {[%clk 0:03:01]}  e6 {[%clk 0:02:53]} 3. Nf3 {[%clk 0:03:01]}  b6 {[%clk 0:02:49]} 4. a3 {[%clk 0:02:59]}  Ba6 {[%clk 0:02:44]} 5. Qc2 {[%clk 0:02:54]}  c5 {[%clk 0:02:40]} 6. d5 {[%clk 0:02:53]}  exd5 {[%clk 0:02:38]} 7. cxd5 {[%clk 0:02:52]}  g6 {[%clk 0:02:38]} 8. Nc3 {[%clk 0:02:52]}  Bg7 {[%clk 0:02:36]} 9. h4 {[%clk 0:02:52]}  h6 {[%clk 0:02:31]} 10. Bf4 {[%clk 0:02:27]}  O-O {[%clk 0:02:25]} 11. Qd2 {[%clk 0:02:25]}  Ng4 {[%clk 0:02:21]} 12. h5 {[%clk 0:01:48]}  g5 {[%clk 0:02:19]} 13. Nxg5 {[%clk 0:01:48]}  hxg5 {[%clk 0:02:19]} 14. Bxg5 {[%clk 0:01:49]}  Bf6 {[%clk 0:02:15]} 15. Rh4 {[%clk 0:01:44]}  Ne5 {[%clk 0:02:01]} 16. Ne4 {[%clk 0:01:26]}  Bxg5 {[%clk 0:01:58]} 17. Nxg5 {[%clk 0:01:27]}  Qf6 {[%clk 0:01:54]} 18. g3 {[%clk 0:01:19]}  Re8 {[%clk 0:01:50]} 19. Ne4 {[%clk 0:01:08]}  Qf5 {[%clk 0:01:40]} 20. Rf4 {[%clk 0:00:55]}  Nd3+ {[%clk 0:01:26]} 21. exd3 {[%clk 0:00:51]}  Qxd5 {[%clk 0:01:22]} 22. O-O-O {[%clk 0:00:48]}  Qa2 {[%clk 0:01:17]} 23. Rg4+ {[%clk 0:00:44]} 1-0


[Site "https://www.chess.com"]

[Event "Titled Tuesday Blitz October 26 2021"]
[White "Hakobyan, Aram"]
[Black "Piesik, Piotr"]
[WhiteFideId "13306677"]
[BlackFideId "1136194"]
[WhiteElo "2557"]
[BlackElo "2336"]
[Result "1-0"]
[Round "05"]
[TimeControl "180+1"]
[Date "2021.10.26"]
[WhiteClock "0:00:52"]
[BlackClock "0:01:43"]

1. d4 {[%clk 0:03:00]}  c5 {[%clk 0:02:59]} 2. d5 {[%clk 0:03:01]}  e5 {[%clk 0:02:59]} 3. e4 {[%clk 0:02:59]}  d6 {[%clk 0:02:59]} 4. Bb5+ {[%clk 0:02:56]}  Nd7 {[%clk 0:02:58]} 5. a4 {[%clk 0:02:56]}  Be7 {[%clk 0:02:58]} 6. Nc3 {[%clk 0:02:56]}  Bg5 {[%clk 0:02:57]} 7. Qg4 {[%clk 0:02:51]}  Bxc1 {[%clk 0:02:55]} 8. Rxc1 {[%clk 0:02:51]}  Qf6 {[%clk 0:02:53]} 9. Nge2 {[%clk 0:02:32]}  Ne7 {[%clk 0:02:51]} 10. O-O {[%clk 0:02:30]}  a6 {[%clk 0:02:47]} 11. Bxd7+ {[%clk 0:02:26]}  Bxd7 {[%clk 0:02:48]} 12. Qg3 {[%clk 0:02:27]}  Ng6 {[%clk 0:02:41]} 13. f4 {[%clk 0:02:22]}  exf4 {[%clk 0:02:40]} 14. Nxf4 {[%clk 0:02:23]}  Qd4+ {[%clk 0:02:30]} 15. Kh1 {[%clk 0:02:23]}  Nxf4 {[%clk 0:02:28]} 16. Qxf4 {[%clk 0:02:23]}  O-O {[%clk 0:02:25]} 17. Qxd6 {[%clk 0:02:23]}  Rad8 {[%clk 0:02:23]} 18. Qb6 {[%clk 0:02:04]}  Qb4 {[%clk 0:02:21]} 19. a5 {[%clk 0:01:55]}  Qxb6 {[%clk 0:02:18]} 20. axb6 {[%clk 0:01:54]}  Rfe8 {[%clk 0:02:17]} 21. Rce1 {[%clk 0:01:36]}  f6 {[%clk 0:02:16]} 22. Kg1 {[%clk 0:01:35]}  Re5 {[%clk 0:02:15]} 23. Ra1 {[%clk 0:01:26]}  f5 {[%clk 0:02:09]} 24. Ra5 {[%clk 0:01:25]}  fxe4 {[%clk 0:02:07]} 25. Rxc5 {[%clk 0:01:23]}  e3 {[%clk 0:02:03]} 26. Rc7 {[%clk 0:01:21]}  Bf5 {[%clk 0:01:54]} 27. Rxb7 {[%clk 0:01:18]}  Bxc2 {[%clk 0:01:52]} 28. Rc7 {[%clk 0:01:14]}  e2 {[%clk 0:01:49]} 29. Re1 {[%clk 0:01:14]}  Bd3 {[%clk 0:01:48]} 30. b7 {[%clk 0:01:09]}  Ree8 {[%clk 0:01:47]} 31. Kf2 {[%clk 0:00:59]}  Kf8 {[%clk 0:01:45]} 32. Nxe2 {[%clk 0:00:55]}  Rxd5 {[%clk 0:01:43]} 33. Nf4 {[%clk 0:00:52]} 1-0


[Site "https://www.chess.com"]

[Event "Titled Tuesday Blitz October 26 2021"]
[White "Iskusnyh, Sergei"]
[Black "Maksimovic, Bojan"]
[WhiteFideId "4120027"]
[BlackFideId "14408120"]
[WhiteElo "2492"]
[BlackElo "2439"]
[Result "1-0"]
[Round "05"]
[TimeControl "180+1"]
[Date "2021.10.26"]
[WhiteClock "0:00:11"]
[BlackClock "0:00:02"]

1. d4 {[%clk 0:03:00]}  Nf6 {[%clk 0:02:59]} 2. c4 {[%clk 0:03:00]}  c5 {[%clk 0:03:00]} 3. d5 {[%clk 0:02:59]}  b5 {[%clk 0:03:00]} 4. Qc2 {[%clk 0:02:55]}  bxc4 {[%clk 0:03:00]} 5. e4 {[%clk 0:02:55]}  e6 {[%clk 0:03:00]} 6. Nc3 {[%clk 0:02:51]}  exd5 {[%clk 0:02:58]} 7. e5 {[%clk 0:02:47]}  Qe7 {[%clk 0:02:33]} 8. Nf3 {[%clk 0:02:38]}  Nc6 {[%clk 0:02:28]} 9. Bf4 {[%clk 0:02:12]}  d6 {[%clk 0:02:16]} 10. O-O-O {[%clk 0:01:59]}  dxe5 {[%clk 0:02:15]} 11. Nxe5 {[%clk 0:01:51]}  Nxe5 {[%clk 0:02:15]} 12. Re1 {[%clk 0:01:51]}  Be6 {[%clk 0:01:45]} 13. Bxe5 {[%clk 0:01:46]}  Qd7 {[%clk 0:01:44]} 14. f4 {[%clk 0:01:25]}  Be7 {[%clk 0:01:36]} 15. Bxf6 {[%clk 0:00:56]}  gxf6 {[%clk 0:01:37]} 16. g4 {[%clk 0:00:56]}  Bxg4 {[%clk 0:01:31]} 17. Bg2 {[%clk 0:00:30]}  Kf8 {[%clk 0:00:30]} 18. Nxd5 {[%clk 0:00:28]}  Re8 {[%clk 0:00:31]} 19. Qxc4 {[%clk 0:00:23]}  Be6 {[%clk 0:00:28]} 20. f5 {[%clk 0:00:20]}  Bxf5 {[%clk 0:00:24]} 21. Qf4 {[%clk 0:00:15]}  Be6 {[%clk 0:00:21]} 22. Qh6+ {[%clk 0:00:15]}  Kg8 {[%clk 0:00:20]} 23. Rhg1 {[%clk 0:00:15]}  Bf5 {[%clk 0:00:05]} 24. Rxe7 {[%clk 0:00:14]}  Qxe7 {[%clk 0:00:04]} 25. Be4+ {[%clk 0:00:13]}  Bg6 {[%clk 0:00:03]} 26. Nxe7+ {[%clk 0:00:13]}  Rxe7 {[%clk 0:00:04]} 27. Bc2 {[%clk 0:00:13]}  Re2 {[%clk 0:00:03]} 28. Bb1 {[%clk 0:00:12]}  c4 {[%clk 0:00:03]} 29. h4 {[%clk 0:00:12]}  Re5 {[%clk 0:00:02]} 30. h5 {[%clk 0:00:11]}  c3 {[%clk 0:00:03]} 31. bxc3 {[%clk 0:00:11]}  Re3 {[%clk 0:00:03]} 32. hxg6 {[%clk 0:00:11]}  hxg6 {[%clk 0:00:02]} 33. Qxe3 {[%clk 0:00:11]} 1-0


[Site "https://www.chess.com"]

[Event "Titled Tuesday Blitz October 26 2021"]
[White "Khoroshev, Nikita"]
[Black "Kamsky, Gata"]
[WhiteFideId "14200287"]
[BlackFideId "2000024"]
[WhiteElo "2376"]
[BlackElo "2603"]
[Result "0-1"]
[Round "05"]
[TimeControl "180+1"]
[Date "2021.10.26"]
[WhiteClock "0:00:09"]
[BlackClock "0:00:10"]

1. Nf3 {[%clk 0:03:00]}  Nf6 {[%clk 0:02:56]} 2. d4 {[%clk 0:02:57]}  g6 {[%clk 0:02:53]} 3. c4 {[%clk 0:02:53]}  Bg7 {[%clk 0:02:49]} 4. Nc3 {[%clk 0:02:54]}  b6 {[%clk 0:02:48]} 5. h4 {[%clk 0:02:50]}  Bb7 {[%clk 0:02:45]} 6. Bg5 {[%clk 0:02:47]}  d6 {[%clk 0:02:42]} 7. Bxf6 {[%clk 0:02:44]}  Bxf6 {[%clk 0:02:39]} 8. h5 {[%clk 0:02:45]}  e6 {[%clk 0:02:36]} 9. e3 {[%clk 0:02:41]}  Nd7 {[%clk 0:02:34]} 10. Bd3 {[%clk 0:02:42]}  Bg7 {[%clk 0:02:23]} 11. Qc2 {[%clk 0:02:36]}  Nf6 {[%clk 0:02:02]} 12. h6 {[%clk 0:01:58]}  Bf8 {[%clk 0:02:00]} 13. O-O-O {[%clk 0:01:50]}  Be7 {[%clk 0:01:56]} 14. Ne4 {[%clk 0:01:45]}  Ng4 {[%clk 0:01:53]} 15. Qe2 {[%clk 0:01:34]}  f5 {[%clk 0:01:52]} 16. Ng3 {[%clk 0:01:25]}  O-O {[%clk 0:01:48]} 17. Kb1 {[%clk 0:01:14]}  Kh8 {[%clk 0:01:42]} 18. e4 {[%clk 0:01:06]}  Bf6 {[%clk 0:01:32]} 19. d5 {[%clk 0:00:59]}  f4 {[%clk 0:01:31]} 20. Nf1 {[%clk 0:00:53]}  Qe7 {[%clk 0:01:22]} 21. Qc2 {[%clk 0:00:44]}  a5 {[%clk 0:01:17]} 22. N1h2 {[%clk 0:00:29]}  Nxh2 {[%clk 0:01:14]} 23. Rxh2 {[%clk 0:00:29]}  a4 {[%clk 0:01:12]} 24. e5 {[%clk 0:00:28]}  dxe5 {[%clk 0:01:07]} 25. Be4 {[%clk 0:00:25]}  a3 {[%clk 0:01:06]} 26. b3 {[%clk 0:00:23]}  Rad8 {[%clk 0:01:05]} 27. Rhh1 {[%clk 0:00:22]}  Bc8 {[%clk 0:01:02]} 28. Rhe1 {[%clk 0:00:21]}  Bg5 {[%clk 0:00:37]} 29. Qc3 {[%clk 0:00:18]}  Bf6 {[%clk 0:00:35]} 30. Re2 {[%clk 0:00:15]}  exd5 {[%clk 0:00:33]} 31. cxd5 {[%clk 0:00:16]}  Bg4 {[%clk 0:00:33]} 32. Rc1 {[%clk 0:00:14]}  Rd7 {[%clk 0:00:32]} 33. Qc6 {[%clk 0:00:13]}  Bg5 {[%clk 0:00:27]} 34. Rec2 {[%clk 0:00:10]}  Bxh6 {[%clk 0:00:24]} 35. Rh1 {[%clk 0:00:07]}  Kg7 {[%clk 0:00:20]} 36. Qc3 {[%clk 0:00:04]}  Bxf3 {[%clk 0:00:20]} 37. gxf3 {[%clk 0:00:05]}  Bg5 {[%clk 0:00:18]} 38. Rcc1 {[%clk 0:00:05]}  h5 {[%clk 0:00:17]} 39. Rcg1 {[%clk 0:00:06]}  Kh6 {[%clk 0:00:17]} 40. Qd2 {[%clk 0:00:06]}  Rd6 {[%clk 0:00:16]} 41. Rg2 {[%clk 0:00:06]}  Rg8 {[%clk 0:00:13]} 42. Rhg1 {[%clk 0:00:07]}  Bh4 {[%clk 0:00:12]} 43. Qc2 {[%clk 0:00:08]}  g5 {[%clk 0:00:12]} 44. Rh1 {[%clk 0:00:08]}  Rg7 {[%clk 0:00:11]} 45. Rgh2 {[%clk 0:00:09]}  Qf6 {[%clk 0:00:11]} 46. Bf5 {[%clk 0:00:09]}  Rxd5 {[%clk 0:00:11]} 47. Be4 {[%clk 0:00:09]}  Rd6 {[%clk 0:00:11]} 48. Qc4 {[%clk 0:00:09]}  Rd2 {[%clk 0:00:09]} 49. Qc3 {[%clk 0:00:08]}  Rb2+ {[%clk 0:00:09]} 50. Ka1 {[%clk 0:00:09]}  Qd6 {[%clk 0:00:09]} 51. Rc1 {[%clk 0:00:06]}  Rd2 {[%clk 0:00:09]} 52. Rg2 {[%clk 0:00:04]}  Qd4 {[%clk 0:00:08]} 53. Qxd4 {[%clk 0:00:04]}  Rxd4 {[%clk 0:00:07]} 54. Rc6+ {[%clk 0:00:05]}  Rd6 {[%clk 0:00:08]} 55. Kb1 {[%clk 0:00:06]}  Rd7 {[%clk 0:00:08]} 56. Rc1 {[%clk 0:00:05]}  Rd2 {[%clk 0:00:08]} 57. Rc6+ {[%clk 0:00:05]}  R2d6 {[%clk 0:00:07]} 58. Rc1 {[%clk 0:00:05]}  Rd1 {[%clk 0:00:07]} 59. Rxd1 {[%clk 0:00:05]}  Rxd1+ {[%clk 0:00:07]} 60. Kc2 {[%clk 0:00:05]}  Rf1 {[%clk 0:00:08]} 61. Kd3 {[%clk 0:00:06]}  Rxf2 {[%clk 0:00:08]} 62. Rg1 {[%clk 0:00:07]}  Rxa2 {[%clk 0:00:08]} 63. Kc4 {[%clk 0:00:08]}  Rb2 {[%clk 0:00:07]} 64. Kc3 {[%clk 0:00:06]}  Bf2 {[%clk 0:00:06]} 65. Rd1 {[%clk 0:00:06]}  Bd4+ {[%clk 0:00:07]} 66. Kc4 {[%clk 0:00:06]}  a2 {[%clk 0:00:08]} 67. Kd5 {[%clk 0:00:05]}  g4 {[%clk 0:00:08]} 68. fxg4 {[%clk 0:00:05]}  hxg4 {[%clk 0:00:08]} 69. Ke6 {[%clk 0:00:05]}  Kg5 {[%clk 0:00:08]} 70. Rh1 {[%clk 0:00:05]}  f3 {[%clk 0:00:09]} 71. Rh8 {[%clk 0:00:06]}  Kf4 {[%clk 0:00:09]} 72. Bd5 {[%clk 0:00:06]}  Ke3 {[%clk 0:00:10]} 73. Rf8 {[%clk 0:00:07]}  a1=Q {[%clk 0:00:10]} 74. Bc4 {[%clk 0:00:07]}  Qa3 {[%clk 0:00:10]} 75. Rf7 {[%clk 0:00:06]}  Qd6+ {[%clk 0:00:10]} 76. Kf5 {[%clk 0:00:07]}  g3 {[%clk 0:00:10]} 77. Kg5 {[%clk 0:00:08]}  g2 {[%clk 0:00:10]} 78. Kf5 {[%clk 0:00:09]}  g1=Q {[%clk 0:00:10]} 0-1


[Site "https://www.chess.com"]

[Event "Titled Tuesday Blitz October 26 2021"]
[White "Kobalia, Mikhail"]
[Black "Kovalchuk, Alexey"]
[WhiteFideId "4119150"]
[BlackFideId "24154385"]
[WhiteElo "2590"]
[BlackElo "2287"]
[Result "1-0"]
[Round "05"]
[TimeControl "180+1"]
[Date "2021.10.26"]
[WhiteClock "0:00:14"]
[BlackClock "0:00:01"]

1. e4 {[%clk 0:03:00]}  e5 {[%clk 0:02:57]} 2. Nf3 {[%clk 0:03:00]}  Nf6 {[%clk 0:02:57]} 3. d3 {[%clk 0:02:59]}  Nc6 {[%clk 0:02:56]} 4. g3 {[%clk 0:03:00]}  Bc5 {[%clk 0:02:47]} 5. Bg2 {[%clk 0:02:59]}  d6 {[%clk 0:02:45]} 6. O-O {[%clk 0:02:59]}  O-O {[%clk 0:02:45]} 7. c3 {[%clk 0:02:58]}  a6 {[%clk 0:02:41]} 8. h3 {[%clk 0:02:55]}  Ba7 {[%clk 0:02:41]} 9. Kh2 {[%clk 0:02:55]}  Ne7 {[%clk 0:02:38]} 10. Nh4 {[%clk 0:02:54]}  Ng6 {[%clk 0:02:37]} 11. Nxg6 {[%clk 0:02:47]}  hxg6 {[%clk 0:02:36]} 12. Nd2 {[%clk 0:02:47]}  c6 {[%clk 0:02:18]} 13. Nf3 {[%clk 0:02:46]}  Re8 {[%clk 0:02:13]} 14. Bg5 {[%clk 0:02:44]}  Qc7 {[%clk 0:01:59]} 15. Bxf6 {[%clk 0:02:44]}  gxf6 {[%clk 0:01:59]} 16. Nh4 {[%clk 0:02:44]}  Kg7 {[%clk 0:01:51]} 17. f4 {[%clk 0:02:37]}  Rh8 {[%clk 0:01:42]} 18. Qf3 {[%clk 0:02:32]}  Qe7 {[%clk 0:01:31]} 19. Qe2 {[%clk 0:02:20]}  Bd7 {[%clk 0:01:17]} 20. Rf3 {[%clk 0:02:19]}  Raf8 {[%clk 0:00:35]} 21. Raf1 {[%clk 0:02:18]}  Bb8 {[%clk 0:00:35]} 22. d4 {[%clk 0:02:11]}  exf4 {[%clk 0:00:27]} 23. Rxf4 {[%clk 0:01:41]}  d5 {[%clk 0:00:28]} 24. Rg4 {[%clk 0:01:41]}  Re8 {[%clk 0:00:06]} 25. e5 {[%clk 0:01:32]}  fxe5 {[%clk 0:00:05]} 26. Nf5+ {[%clk 0:00:58]}  Bxf5 {[%clk 0:00:04]} 27. Rxf5 {[%clk 0:00:59]}  exd4 {[%clk 0:00:03]} 28. Qd3 {[%clk 0:00:55]}  Qe6 {[%clk 0:00:02]} 29. Qxd4+ {[%clk 0:00:39]}  Be5 {[%clk 0:00:02]} 30. Qf2 {[%clk 0:00:37]}  Re7 {[%clk 0:00:01]} 31. Rgg5 {[%clk 0:00:23]}  Qd6 {[%clk 0:00:01]} 32. c4 {[%clk 0:00:15]}  dxc4 {[%clk 0:00:01]} 33. Rf3 {[%clk 0:00:14]} 1-0


[Site "https://www.chess.com"]

[Event "Titled Tuesday Blitz October 26 2021"]
[White "Krivonosov, Oleg"]
[Black "Beerdsen, Thomas"]
[WhiteFideId "11600349"]
[BlackFideId "1030108"]
[WhiteElo "2469"]
[BlackElo "2585"]
[Result "0-1"]
[Round "05"]
[TimeControl "180+1"]
[Date "2021.10.26"]
[WhiteClock "0:02:20"]
[BlackClock "0:02:32"]

1. Nf3 {[%clk 0:03:00]}  h6 {[%clk 0:03:00]} 2. d4 {[%clk 0:02:59]}  g5 {[%clk 0:03:01]} 3. h3 {[%clk 0:02:58]}  Bg7 {[%clk 0:03:01]} 4. c4 {[%clk 0:02:58]}  d6 {[%clk 0:02:59]} 5. Nc3 {[%clk 0:02:57]}  a6 {[%clk 0:02:58]} 6. e4 {[%clk 0:02:56]}  c5 {[%clk 0:02:56]} 7. dxc5 {[%clk 0:02:49]}  dxc5 {[%clk 0:02:53]} 8. Qxd8+ {[%clk 0:02:48]}  Kxd8 {[%clk 0:02:54]} 9. Be3 {[%clk 0:02:47]}  Nd7 {[%clk 0:02:50]} 10. O-O-O {[%clk 0:02:44]}  Bxc3 {[%clk 0:02:50]} 11. bxc3 {[%clk 0:02:43]}  Nf6 {[%clk 0:02:48]} 12. e5 {[%clk 0:02:35]}  Ne4 {[%clk 0:02:33]} 13. Bxc5 {[%clk 0:02:20]}  Nxc5 {[%clk 0:02:32]} 0-1


[Site "https://www.chess.com"]

[Event "Titled Tuesday Blitz October 26 2021"]
[White "Le, Tuan Minh"]
[Black "Srihari L R"]
[WhiteFideId "12401153"]
[BlackFideId "46617116"]
[WhiteElo "2450"]
[BlackElo "2121"]
[Result "1-0"]
[Round "05"]
[TimeControl "180+1"]
[Date "2021.10.26"]
[WhiteClock "0:00:18"]
[BlackClock "0:00:04"]

1. d4 {[%clk 0:03:00]}  Nf6 {[%clk 0:02:55]} 2. Nf3 {[%clk 0:03:00]}  g6 {[%clk 0:02:55]} 3. Bg5 {[%clk 0:02:59]}  Bg7 {[%clk 0:02:55]} 4. Nbd2 {[%clk 0:03:00]}  O-O {[%clk 0:02:55]} 5. c3 {[%clk 0:03:00]}  c5 {[%clk 0:02:52]} 6. e3 {[%clk 0:02:57]}  cxd4 {[%clk 0:02:49]} 7. cxd4 {[%clk 0:02:57]}  d5 {[%clk 0:02:49]} 8. Bd3 {[%clk 0:02:56]}  Bf5 {[%clk 0:02:47]} 9. Bxf5 {[%clk 0:02:56]}  gxf5 {[%clk 0:02:48]} 10. O-O {[%clk 0:02:57]}  Ne4 {[%clk 0:02:47]} 11. Bf4 {[%clk 0:02:56]}  Nc6 {[%clk 0:02:43]} 12. Qb3 {[%clk 0:02:56]}  Na5 {[%clk 0:02:43]} 13. Qa4 {[%clk 0:02:53]}  a6 {[%clk 0:02:37]} 14. Rfc1 {[%clk 0:02:47]}  b5 {[%clk 0:02:32]} 15. Qd1 {[%clk 0:02:43]}  Nc4 {[%clk 0:02:31]} 16. b3 {[%clk 0:02:43]}  Ncxd2 {[%clk 0:02:24]} 17. Nxd2 {[%clk 0:02:44]}  Rc8 {[%clk 0:02:23]} 18. Rxc8 {[%clk 0:02:41]}  Qxc8 {[%clk 0:02:22]} 19. Nxe4 {[%clk 0:02:42]}  fxe4 {[%clk 0:02:06]} 20. Rc1 {[%clk 0:02:42]}  Qf5 {[%clk 0:01:57]} 21. Qc2 {[%clk 0:02:42]}  Bxd4 {[%clk 0:01:54]} 22. Qc6 {[%clk 0:02:20]}  Bf6 {[%clk 0:01:25]} 23. Rc5 {[%clk 0:01:53]}  Rd8 {[%clk 0:01:08]} 24. h3 {[%clk 0:01:46]}  Qe6 {[%clk 0:00:59]} 25. Qc7 {[%clk 0:01:44]}  Ra8 {[%clk 0:00:51]} 26. Qb7 {[%clk 0:01:40]}  Rd8 {[%clk 0:00:50]} 27. Rc6 {[%clk 0:01:26]}  Qd7 {[%clk 0:00:48]} 28. Qxa6 {[%clk 0:01:18]}  d4 {[%clk 0:00:47]} 29. exd4 {[%clk 0:01:19]}  Qxd4 {[%clk 0:00:44]} 30. Qxb5 {[%clk 0:00:53]}  Qa1+ {[%clk 0:00:34]} 31. Rc1 {[%clk 0:00:53]}  Rd1+ {[%clk 0:00:32]} 32. Rxd1 {[%clk 0:00:52]}  Qxd1+ {[%clk 0:00:33]} 33. Kh2 {[%clk 0:00:53]}  Qc2 {[%clk 0:00:28]} 34. Bh6 {[%clk 0:00:45]}  Qc7+ {[%clk 0:00:25]} 35. Kg1 {[%clk 0:00:43]}  Qd8 {[%clk 0:00:22]} 36. Qf5 {[%clk 0:00:40]}  Bg7 {[%clk 0:00:12]} 37. Bf4 {[%clk 0:00:25]}  Qa8 {[%clk 0:00:09]} 38. a4 {[%clk 0:00:24]}  e6 {[%clk 0:00:08]} 39. Qb5 {[%clk 0:00:24]}  Qd8 {[%clk 0:00:06]} 40. a5 {[%clk 0:00:24]}  e5 {[%clk 0:00:04]} 41. Be3 {[%clk 0:00:20]}  f5 {[%clk 0:00:04]} 42. a6 {[%clk 0:00:20]}  f4 {[%clk 0:00:04]} 43. a7 {[%clk 0:00:20]}  fxe3 {[%clk 0:00:04]} 44. Qb8 {[%clk 0:00:18]} 1-0


[Site "https://www.chess.com"]

[Event "Titled Tuesday Blitz October 26 2021"]
[White "Moroni, Luca Jr"]
[Black "Yoo, Christopher Woojin"]
[WhiteFideId "865834"]
[BlackFideId "30909694"]
[WhiteElo "2491"]
[BlackElo "2105"]
[Result "0-1"]
[Round "05"]
[TimeControl "180+1"]
[Date "2021.10.26"]
[WhiteClock "0:00:18"]
[BlackClock "0:01:25"]

1. d4 {[%clk 0:03:00]}  Nf6 {[%clk 0:02:56]} 2. c4 {[%clk 0:03:00]}  e6 {[%clk 0:02:55]} 3. Nc3 {[%clk 0:03:01]}  Bb4 {[%clk 0:02:54]} 4. Nf3 {[%clk 0:03:00]}  h6 {[%clk 0:02:45]} 5. e3 {[%clk 0:02:56]}  O-O {[%clk 0:02:44]} 6. Bd3 {[%clk 0:02:55]}  d5 {[%clk 0:02:43]} 7. O-O {[%clk 0:02:52]}  b6 {[%clk 0:02:24]} 8. cxd5 {[%clk 0:02:51]}  exd5 {[%clk 0:02:24]} 9. Ne5 {[%clk 0:02:51]}  Bd6 {[%clk 0:02:20]} 10. f4 {[%clk 0:02:49]}  c5 {[%clk 0:02:17]} 11. Bd2 {[%clk 0:02:27]}  Bb7 {[%clk 0:02:17]} 12. g4 {[%clk 0:01:55]}  Ne4 {[%clk 0:02:02]} 13. Nxe4 {[%clk 0:01:42]}  dxe4 {[%clk 0:02:01]} 14. Bc4 {[%clk 0:01:42]}  cxd4 {[%clk 0:01:58]} 15. exd4 {[%clk 0:01:43]}  Bxe5 {[%clk 0:01:56]} 16. Be3 {[%clk 0:01:05]}  Bf6 {[%clk 0:01:47]} 17. g5 {[%clk 0:01:05]}  hxg5 {[%clk 0:01:45]} 18. fxg5 {[%clk 0:01:06]}  Bxg5 {[%clk 0:01:45]} 19. Qh5 {[%clk 0:00:43]}  Bxe3+ {[%clk 0:01:41]} 20. Kh1 {[%clk 0:00:43]}  Qe7 {[%clk 0:01:35]} 21. Rxf7 {[%clk 0:00:23]}  Rxf7 {[%clk 0:01:34]} 22. Rf1 {[%clk 0:00:23]}  Bf2 {[%clk 0:01:32]} 23. d5 {[%clk 0:00:18]}  Qd6 {[%clk 0:01:25]} 0-1


[Site "https://www.chess.com"]